bitfinex-derivatives/quotes_BTCF0:USTF0_20251110
["timestamp","ask_amount","ask_price","bid_price","bid_amount"]
[1762799797265,0.60751067,105900.0,105890.0,0.05780177]
[1762799797466,0.60551067,105900.0,105890.0,0.15227117]
[1762799797676,0.60551067,105900.0,105890.0,0.15327117]
[1762799797975,0.60351067,105900.0,105890.0,0.15327117]
[1762799798474,0.24271067,105900.0,105890.0,0.15327117]
[1762799798775,0.13983987,105900.0,105890.0,0.15327117]
[1762799799172,0.23430037,105900.0,105890.0,0.15327117]
[1762799800271,0.13983987,105900.0,105890.0,0.15327117]
[1762799800777,0.23430037,105900.0,105890.0,0.15327117]
[1762799800978,0.32799951,105900.0,105890.0,0.15327117]
[1762799801571,0.23353901,105900.0,105890.0,0.15327117]
[1762799802268,0.32799951,105900.0,105890.0,0.15327117]
[1762799802469,0.23353901,105900.0,105890.0,0.51407117]
[1762799802777,0.32799951,105900.0,105890.0,0.51407117]
[1762799802977,0.32799951,105900.0,105890.0,0.15327117]
[1762799804879,0.23353901,105900.0,105890.0,0.15327117]
[1762799805779,0.32799951,105900.0,105890.0,0.15327117]
[1762799807181,0.23353901,105900.0,105890.0,0.15327117]
[1762799808480,0.23353901,105900.0,105890.0,0.51407117]
[1762799809282,0.09589352,105900.0,105890.0,0.60776666]
[1762799809676,0.11766352,105900.0,105890.0,0.51407117]
[1762799809874,0.14008352,105900.0,105890.0,0.51407117]
[1762799811182,0.23377901,105900.0,105890.0,0.51407117]
[1762799811378,0.14008352,105900.0,105890.0,0.51407117]
[1762799811577,0.23377901,105900.0,105890.0,0.51407117]
[1762799811977,0.14008352,105900.0,105890.0,0.51407117]
[1762799812684,0.23377901,105900.0,105890.0,0.51407117]
[1762799812985,0.14008352,105900.0,105890.0,0.51407117]
[1762799813176,0.04433177,105920.0,105910.0,0.05828]
[1762799813377,0.5044963,105950.0,105940.0,0.1527053]
[1762799813582,0.06943119,105950.0,105940.0,0.1527053]
[1762799813771,0.13788549,105950.0,105940.0,0.60720079]
[1762799813977,0.10661549,105960.0,105950.0,0.152696]
[1762799813978,0.02177,105960.0,105950.0,0.152696]
[1762799814177,0.53430475,105980.0,105970.0,0.05697]
[1762799814376,0.17570278,105980.0,105970.0,0.05697]
[1762799814578,0.23422282,105980.0,105970.0,0.05697]
[1762799814777,0.13983352,105980.0,105970.0,0.1513682]
[1762799815186,0.13983352,105980.0,105970.0,0.21905181]
[1762799815385,0.13983352,105980.0,105970.0,0.5121682]
[1762799815787,0.14183352,105980.0,105970.0,0.5121682]
[1762799816184,0.14183352,105980.0,105970.0,0.60586369]
[1762799816384,0.04813803,105980.0,105970.0,0.60586369]
[1762799816584,0.05013803,105980.0,105970.0,0.60586369]
[1762799816785,0.14383352,105980.0,105970.0,0.5121682]
[1762799816987,0.05013803,105980.0,105970.0,0.5121682]
[1762799818385,0.14452733,105980.0,105970.0,0.5121682]
[1762799818592,0.14452733,105980.0,105970.0,0.05697]
[1762799818887,0.15721733,105980.0,105970.0,0.1513682]
[1762799819785,0.05013803,105980.0,105970.0,0.5121682]
[1762799820185,0.05013803,105980.0,105970.0,0.1513682]
[1762799820599,0.05013803,105980.0,105970.0,0.5121682]
[1762799821397,0.004,105980.0,105970.0,0.62909255]
[1762799821903,0.004,105980.0,105970.0,0.5121682]
[1762799822697,0.00050421,105980.0,105970.0,0.5121682]
[1762799822901,0.36094177,105990.0,105980.0,0.1513593]
[1762799822902,0.00014177,105990.0,105980.0,0.1513593]
[1762799823102,0.00014177,105990.0,105980.0,0.5121593]
[1762799823300,0.1445902,105990.0,105980.0,0.43738824]
[1762799823499,0.1510282,105970.0,105960.0,0.04442177]
[1762799823702,0.99175058,105970.0,105960.0,0.00014177]
[1762799823910,0.99175058,105970.0,105960.0,0.02142177]
[1762799824106,0.99175058,105970.0,105960.0,0.04442177]
[1762799824811,0.99275058,105970.0,105960.0,0.04442177]
[1762799825914,0.99375058,105970.0,105960.0,0.04442177]
[1762799826608,0.99375058,105970.0,105960.0,0.02142177]
[1762799826816,0.99375058,105970.0,105960.0,0.00014177]
[1762799832715,0.144816,105950.0,105940.0,0.07453255]
[1762799833016,0.1510549,105940.0,105930.0,0.04428]
[1762799833208,0.63097728,105940.0,105930.0,0.04428]
[1762799833402,0.63097728,105940.0,105930.0,0.02128]
[1762799833604,0.1510638,105930.0,105920.0,0.05697]
[1762799833809,0.63098618,105930.0,105920.0,0.1387227]
[1762799834011,0.63098618,105930.0,105920.0,0.21240812]
[1762799834504,0.17575238,105930.0,105920.0,0.22509812]
[1762799834713,0.63098648,105930.0,105920.0,0.22509812]
[1762799834907,0.51406213,105930.0,105920.0,0.22509812]
[1762799835314,0.51406213,105930.0,105920.0,0.22909812]
[1762799835516,0.51406213,105930.0,105920.0,0.23209812]
[1762799836114,0.51406213,105930.0,105920.0,0.22809812]
[1762799837322,0.51406213,105930.0,105920.0,0.12096542]
[1762799837516,0.51406213,105930.0,105920.0,0.22809842]
[1762799839117,0.04512177,105940.0,105930.0,0.1515141]
[1762799839319,0.00014177,105940.0,105930.0,0.62923845]
[1762799839923,0.00014177,105940.0,105930.0,0.5123141]
[1762799840124,0.00014177,105940.0,105930.0,0.62923845]
[1762799841323,0.00014177,105940.0,105930.0,0.63023845]
[1762799844112,0.02221177,105940.0,105930.0,0.63023845]
[1762799845725,0.04512177,105940.0,105930.0,0.63023845]
[1762799847026,0.02221177,105940.0,105930.0,0.63023845]
[1762799847432,0.00014177,105940.0,105930.0,0.63023845]
[1762799847618,0.00014177,105940.0,105930.0,0.69792206]
[1762799847818,0.00014177,105940.0,105930.0,0.63023845]
[1762799848428,0.00014177,105940.0,105930.0,0.69792206]
[1762799849428,0.02221177,105940.0,105930.0,0.69792206]
[1762799849620,0.02221177,105940.0,105930.0,0.63023845]
[1762799849924,0.02221177,105940.0,105930.0,0.69792206]
[1762799850126,0.02221177,105940.0,105930.0,0.63023845]
[1762799850429,0.04512177,105940.0,105930.0,0.58099771]
[1762799850725,0.00014177,105940.0,105930.0,0.58099771]
[1762799851527,0.00014177,105940.0,105930.0,0.69792206]
[1762799852230,0.40578,105960.0,105950.0,0.151496]
[1762799852430,0.50238513,105960.0,105950.0,0.151496]
[1762799853526,0.14158513,105960.0,105950.0,0.151496]
[1762799853726,0.14558513,105960.0,105950.0,0.151496]
[1762799854827,0.23916943,105960.0,105950.0,0.151496]
[1762799855127,0.14558513,105960.0,105950.0,0.151496]
[1762799855319,0.23916943,105960.0,105950.0,0.151496]
[1762799855521,0.23916943,105960.0,105950.0,0.2450803]
[1762799855719,0.14476233,105960.0,105950.0,0.2450803]
[1762799857025,0.14476233,105960.0,105950.0,0.151496]
[1762799857026,0.23916963,105960.0,105950.0,0.151496]
[1762799857220,0.23916963,105960.0,105950.0,0.2450803]
[1762799857421,0.23916963,105960.0,105950.0,0.151496]
[1762799858320,0.60642963,105960.0,105950.0,0.04331]
[1762799858825,0.70001393,105960.0,105950.0,0.02112]
[1762799859130,0.70001393,105960.0,105950.0,0.04331]
[1762799861830,0.1522966,105950.0,105940.0,0.23146077]
[1762799862032,0.60887893,105950.0,105940.0,0.23146077]
[1762799862229,0.60887893,105950.0,105940.0,0.24523077]
[1762799862427,0.24807893,105950.0,105940.0,0.24523077]
[1762799862736,0.60887893,105950.0,105940.0,0.24523077]
[1762799863034,0.51529463,105950.0,105940.0,0.15164647]
[1762799863435,0.51629463,105950.0,105940.0,0.15164647]
[1762799864629,0.51629463,105950.0,105940.0,0.05722177]
[1762799864834,0.60989339,105950.0,105940.0,0.02126177]
[1762799865027,0.60989339,105950.0,105940.0,0.06782538]
[1762799865429,0.60989339,105950.0,105940.0,0.00014177]
[1762799865633,0.60989339,105950.0,105940.0,1.77e-06]
[1762799866236,0.63171264,105950.0,105940.0,1.77e-06]
[1762799866936,0.60989339,105950.0,105940.0,1.77e-06]
[1762799870739,0.60989339,105950.0,105940.0,0.04373177]
[1762799871147,0.60989339,105950.0,105940.0,0.02154177]
[1762799872543,0.60989339,105950.0,105940.0,0.04373177]
[1762799874037,0.60989339,105950.0,105940.0,0.13815697]
[1762799875744,0.60989339,105950.0,105940.0,0.15078697]
[1762799875955,0.60989339,105950.0,105940.0,0.04373177]
[1762799876446,0.61004339,105950.0,105940.0,0.05636177]
[1762799876644,0.59699339,105950.0,105940.0,0.15078697]
[1762799877848,0.14259463,105950.0,105940.0,0.15078697]
[1762799878542,0.14259463,105950.0,105940.0,0.21861951]
[1762799882449,0.23619339,105950.0,105940.0,0.21861951]
[1762799883955,0.14259463,105950.0,105940.0,0.21861951]
[1762799884156,0.23619339,105950.0,105940.0,0.21861951]
[1762799884351,0.04817803,105950.0,105940.0,0.67301827]
[1762799884950,0.04817803,105950.0,105940.0,0.51158697]
[1762799885160,0.14259443,105950.0,105940.0,0.51158697]
[1762799885455,0.14259443,105950.0,105940.0,0.59637764]
[1762799885654,0.61004319,105950.0,105940.0,0.14215244]
[1762799885856,0.60904319,105950.0,105940.0,0.04473177]
[1762799886052,0.60904319,105950.0,105940.0,0.11249822]
[1762799887844,0.60904319,105950.0,105940.0,0.20692322]
[1762799888850,0.60904319,105950.0,105940.0,0.11249822]
[1762799890756,0.60904319,105950.0,105940.0,0.20692322]
[1762799891858,0.60904319,105950.0,105940.0,0.21955322]
[1762799891859,0.59599319,105950.0,105940.0,0.21955322]
[1762799892258,0.60546319,105950.0,105940.0,0.04473177]
[1762799893961,0.60546319,105950.0,105940.0,0.13915677]
[1762799895350,0.60546319,105950.0,105940.0,0.04473177]
[1762799896351,0.60546319,105950.0,105940.0,0.13915677]
[1762799897863,0.60546319,105950.0,105940.0,0.04473177]
[1762799899465,0.60546319,105950.0,105940.0,0.13915677]
[1762799899766,0.60546319,105950.0,105940.0,0.20692322]
[1762799900064,0.51186443,105950.0,105940.0,0.22000322]
[1762799900253,0.04717803,105950.0,105940.0,0.58080322]
[1762799900451,0.04717803,105950.0,105940.0,0.51303677]
[1762799900664,0.04717803,105950.0,105940.0,0.58087138]
[1762799903160,0.04717803,105950.0,105940.0,0.51303677]
[1762799903876,0.14159413,105950.0,105940.0,0.51303677]
[1762799905266,0.14159413,105950.0,105940.0,0.15223707]
[1762799910360,0.14159413,105950.0,105940.0,0.23702774]
[1762799911869,0.14159413,105950.0,105940.0,0.15223707]
[1762799913263,0.14159413,105950.0,105940.0,0.51303707]
[1762799913459,0.23519289,105950.0,105940.0,0.41861177]
[1762799913670,0.60552289,105950.0,105940.0,0.22003365]
[1762799914470,0.60552289,105950.0,105940.0,0.22004397]
[1762799915171,0.60552289,105950.0,105940.0,0.15223677]
[1762799916772,0.60552289,105950.0,105940.0,0.00100177]
[1762799917368,0.60552289,105950.0,105940.0,0.0688472]
[1762799917872,0.150395,105940.0,105930.0,0.06784543]
[1762799918063,0.60699179,105940.0,105930.0,0.06784543]
[1762799919281,0.60699179,105940.0,105930.0,0.06884543]
[1762799919572,0.60699179,105940.0,105930.0,0.20887933]
[1762799921673,0.60699179,105940.0,105930.0,0.11444543]
[1762799922874,0.70067559,105940.0,105930.0,0.11444543]
[1762799925370,0.70067559,105940.0,105930.0,0.20887943]
[1762799926167,0.70067559,105940.0,105930.0,0.141034]
[1762799926675,0.70067559,105940.0,105930.0,0.0466]
[1762799927476,0.70067559,105940.0,105930.0,0.11444543]
[1762799927676,0.70067559,105940.0,105930.0,0.20887933]
[1762799931581,0.70067559,105940.0,105930.0,0.11444543]
[1762799931779,0.70067559,105940.0,105930.0,0.09089543]
[1762799931987,0.70067559,105940.0,105930.0,0.11308543]
[1762799932787,0.70067559,105940.0,105930.0,0.20751973]
[1762799934583,0.70067559,105940.0,105930.0,0.001]
[1762799935783,0.70067559,105940.0,105930.0,0.0954343]
[1762799936177,0.70067559,105940.0,105930.0,0.1184143]
[1762799936377,0.70067559,105940.0,105930.0,0.1407243]
[1762799936679,0.70067559,105940.0,105930.0,0.20856973]
[1762799940793,0.70067559,105940.0,105930.0,0.06884543]
[1762799940994,0.70067559,105940.0,105930.0,0.11413543]
[1762799942289,0.70067559,105940.0,105930.0,0.20856933]
[1762799943794,0.70067559,105940.0,105930.0,0.11413543]
[1762799944000,0.152764,105930.0,105920.0,0.06793714]
[1762799944201,0.1340029,105920.0,105910.0,0.00011642]
[1762799944405,0.68428349,105920.0,105910.0,0.00011642]
[1762799945406,0.68428349,105920.0,105910.0,0.00211642]
[1762799945900,0.68428349,105920.0,105910.0,0.07660219]
[1762799946198,0.68428349,105920.0,105910.0,0.02509642]
[1762799946710,0.68428349,105920.0,105910.0,0.14185872]
[1762799947206,0.68428349,105920.0,105910.0,0.04740642]
[1762799947507,0.68428349,105920.0,105910.0,0.04940642]
[1762799947697,0.68428349,105920.0,105910.0,0.14385872]
[1762799947899,0.68428349,105920.0,105910.0,0.00411642]
[1762799948103,0.68428349,105920.0,105910.0,0.02709642]
[1762799948397,0.68428349,105920.0,105910.0,0.00411642]
[1762799949404,0.68428349,105920.0,105910.0,0.00369012]
[1762799949405,0.77792477,105920.0,105910.0,0.00369012]
[1762799949603,0.1298312,105900.0,105890.0,0.08479067]
[1762799949803,0.58246059,105900.0,105890.0,0.1530901]
[1762799950001,0.01828803,105900.0,105890.0,0.24673138]
[1762799950801,0.03437803,105900.0,105890.0,0.61253138]
[1762799951107,0.03449191,105900.0,105890.0,0.61253138]
[1762799951305,0.00231191,105900.0,105890.0,0.61653138]
[1762799951496,0.03449191,105900.0,105890.0,0.61653138]
[1762799951697,0.01840191,105900.0,105890.0,0.61653138]
[1762799952495,0.00231191,105900.0,105890.0,0.61653138]
[1762799953511,0.00231191,105900.0,105890.0,0.69181702]
[1762799953714,0.12813319,105900.0,105890.0,0.59817574]
[1762799954008,0.22259389,105900.0,105890.0,0.59817574]
[1762799954209,0.22259389,105900.0,105890.0,0.66592691]
[1762799955100,0.67703517,105900.0,105890.0,0.30515653]
[1762799955506,0.67703517,105900.0,105890.0,0.21068693]
[1762799955708,0.67703517,105900.0,105890.0,0.14290564]
[1762799956107,0.67703517,105900.0,105890.0,0.23737524]
[1762799956313,0.58339389,105900.0,105890.0,0.23737524]
[1762799957305,0.48893319,105900.0,105890.0,0.23737524]
[1762799957500,0.58339389,105900.0,105890.0,0.23737524]
[1762799957709,0.22259389,105900.0,105890.0,0.23737524]
[1762799958102,0.58339389,105900.0,105890.0,0.23737524]
[1762799958507,0.22259389,105900.0,105890.0,0.23737524]
[1762799959210,0.22259419,105900.0,105890.0,0.33101652]
[1762799959512,0.31623547,105900.0,105890.0,0.14290564]
[1762799959712,0.31623547,105900.0,105890.0,0.23737554]
[1762799960811,0.22259419,105900.0,105890.0,0.23737554]
[1762799961206,0.22259419,105900.0,105890.0,0.30515683]
[1762799961406,0.22259419,105900.0,105890.0,0.23737554]
[1762799966415,0.31623547,105900.0,105890.0,0.23737554]
[1762799966716,0.22259419,105900.0,105890.0,0.23737554]
[1762799967717,0.31623547,105900.0,105890.0,0.23737554]
[1762799970314,0.12813319,105900.0,105890.0,0.59817554]
[1762799970810,0.22259389,105900.0,105890.0,0.59817554]
[1762799971811,0.22259389,105900.0,105890.0,0.66595683]
[1762799973219,0.31623517,105900.0,105890.0,0.66595683]
[1762799974509,0.31623517,105900.0,105890.0,0.30515683]
[1762799975317,0.31623517,105900.0,105890.0,0.23737554]
[1762799975916,0.31623517,105900.0,105890.0,0.32216621]
[1762799976516,0.31623517,105900.0,105890.0,0.23737554]
[1762799978622,0.31623517,105900.0,105890.0,0.30525573]
[1762799979310,0.31623517,105900.0,105890.0,0.23737554]
[1762799979513,0.22177447,105900.0,105890.0,0.23737554]
[1762799979914,0.31623517,105900.0,105890.0,0.23737554]
[1762799980518,0.12813319,105900.0,105890.0,0.33101682]
[1762799980711,0.00231191,105900.0,105890.0,0.75970522]
[1762799980912,0.09595319,105900.0,105890.0,0.75970522]
[1762799981112,0.00231191,105900.0,105890.0,0.69181682]
[1762799981308,0.09595319,105900.0,105890.0,0.77660749]
[1762799981709,0.11204319,105900.0,105890.0,0.77660749]
[1762799981913,0.11204319,105900.0,105890.0,0.81052377]
[1762799982314,0.01840191,105900.0,105890.0,0.81052377]
[1762799982624,0.20650389,105900.0,105890.0,0.71688249]
[1762799982832,0.22259389,105900.0,105890.0,0.68301125]
[1762799983715,0.12813319,105900.0,105890.0,0.68301125]
[1762799983919,0.12813319,105900.0,105890.0,0.77665253]
[1762799984820,0.22259419,105900.0,105890.0,0.68301125]
[1762799985020,0.03449191,105900.0,105890.0,0.68301125]
[1762799989429,0.00231191,105900.0,105890.0,0.68301125]
[1762799989628,0.01840191,105900.0,105890.0,0.68301125]
[1762799989830,0.11208644,105900.0,105890.0,0.68301125]
[1762799990029,0.12817644,105900.0,105890.0,0.68301125]
[1762799990529,0.22263744,105900.0,105890.0,0.68301125]
[1762799990722,0.12817644,105900.0,105890.0,0.68301125]
[1762799990926,0.03449191,105900.0,105890.0,0.68301125]
[1762799991232,0.12895291,105900.0,105890.0,0.68301125]
[1762799993426,0.03449191,105900.0,105890.0,0.68301125]
[1762799997533,0.00231191,105900.0,105890.0,0.68301125]
[1762799997726,0.01840191,105900.0,105890.0,0.68301125]
[1762799998328,0.00231191,105900.0,105890.0,0.77669578]
[1762800000431,0.00011388,105900.0,105890.0,0.77669578]
[1762800003143,0.00231191,105900.0,105890.0,0.68301125]
[1762800003440,0.22263714,105900.0,105890.0,0.14290564]
[1762800003644,0.22263714,105900.0,105890.0,0.23737534]
[1762800003944,0.03449191,105900.0,105890.0,0.59817534]
[1762800004842,0.01840191,105900.0,105890.0,0.59817534]
[1762800005542,0.11286261,105900.0,105890.0,0.59817534]
[1762800005942,0.12895261,105900.0,105890.0,0.59817534]
[1762800007148,0.03449191,105900.0,105890.0,0.59817534]
[1762800007849,0.12895261,105900.0,105890.0,0.59817534]
[1762800008342,0.03449191,105900.0,105890.0,0.59817534]
[1762800009344,0.01840191,105900.0,105890.0,0.59817534]
[1762800009546,0.00231191,105900.0,105890.0,0.59817534]
[1762800010448,0.00231191,105900.0,105890.0,0.68301105]
[1762800011344,0.01840191,105900.0,105890.0,0.68301105]
[1762800011538,0.00231191,105900.0,105890.0,0.68301105]
[1762800013238,0.00011388,105900.0,105890.0,0.77669558]
[1762800013438,0.00231191,105900.0,105890.0,0.77669558]
[1762800013840,0.00231191,105900.0,105890.0,0.68301105]
[1762800014952,0.09677291,105900.0,105890.0,0.68301105]
[1762800015744,0.00231191,105900.0,105890.0,0.68301105]
[1762800016252,0.00014177,105910.0,105900.0,0.05838]
[1762800016442,0.00014177,105910.0,105900.0,0.69216124]
[1762800016642,0.00014177,105910.0,105900.0,0.60732553]
[1762800016839,0.00014177,105910.0,105900.0,0.72603248]
[1762800017252,0.3608,105920.0,105910.0,0.1528321]
[1762800019146,0.3608,105920.0,105910.0,0.1548321]
[1762800019753,0.3608,105920.0,105910.0,0.1558321]
[1762800019952,0.36299803,105920.0,105910.0,0.1558321]
[1762800020357,0.37919803,105920.0,105910.0,0.1558321]
[1762800021153,0.47364093,105920.0,105910.0,0.1558321]
[1762800021458,0.11284093,105920.0,105910.0,0.5166321]
[1762800021752,0.12904093,105920.0,105910.0,0.58437776]
[1762800022056,0.22272546,105920.0,105910.0,0.58437776]
[1762800022256,0.12828256,105920.0,105910.0,0.58437776]
[1762800022456,0.00219803,105920.0,105910.0,0.58437776]
[1762800023748,0.01839803,105920.0,105910.0,0.58437776]
[1762800024149,0.20652546,105920.0,105910.0,0.58437776]
[1762800024946,0.22272546,105920.0,105910.0,0.58437776]
[1762800026259,0.12828256,105920.0,105910.0,0.58437776]
[1762800026461,0.11208256,105920.0,105910.0,0.58437776]
[1762800026755,0.01839803,105920.0,105910.0,0.58437776]
[1762800026951,0.00219803,105920.0,105910.0,0.58437776]
[1762800029249,0.09664093,105920.0,105910.0,0.58437776]
[1762800029456,0.00219803,105920.0,105910.0,0.58437776]
[1762800029655,0.00219803,105920.0,105910.0,0.5166321]
[1762800029955,0.11284093,105920.0,105910.0,0.5166321]
[1762800030560,0.48984093,105920.0,105910.0,0.1290822]
[1762800030859,0.48984093,105920.0,105910.0,0.223534]
[1762800031063,0.12904093,105920.0,105910.0,0.223534]
[1762800032365,0.22272546,105920.0,105910.0,0.223534]
[1762800034168,0.12828256,105920.0,105910.0,0.223534]
[1762800035067,0.12828256,105920.0,105910.0,0.584334]
[1762800035555,0.22272546,105920.0,105910.0,0.584334]
[1762800036468,0.12828256,105920.0,105910.0,0.60142663]
[1762800037666,0.00219803,105920.0,105910.0,0.60142663]
[1762800038062,0.01839803,105920.0,105910.0,0.60142663]
[1762800040466,0.00219803,105920.0,105910.0,0.60142663]
[1762800040670,0.00014177,105930.0,105920.0,0.1518632]
[1762800040962,0.0023398,105930.0,105920.0,0.58041701]
[1762800041364,0.0023398,105930.0,105920.0,0.5126632]
[1762800041568,0.0023398,105930.0,105920.0,0.59745803]
[1762800041776,0.0023398,105930.0,105920.0,0.59845803]
[1762800041963,0.0023398,105930.0,105920.0,0.58141842]
[1762800042158,0.00014177,105930.0,105920.0,0.58241842]
[1762800044274,0.00014177,105930.0,105920.0,0.5146632]
[1762800046367,0.00014177,105930.0,105920.0,0.59945803]
[1762800046577,0.00014177,105930.0,105920.0,0.5146632]
[1762800046877,0.09377235,105930.0,105920.0,0.60829378]
[1762800048075,0.09597038,105930.0,105920.0,0.60829378]
[1762800056977,0.09597038,105930.0,105920.0,0.69308861]
[1762800057884,0.00014177,105930.0,105920.0,0.69308861]
[1762800060776,0.00014177,105930.0,105920.0,0.70192436]
[1762800061284,0.00014177,105930.0,105920.0,0.78671919]
[1762800061485,0.00014177,105930.0,105920.0,0.69308861]
[1762800062887,1.77e-06,105930.0,105920.0,0.78671919]
[1762800063184,0.09363058,105940.0,105930.0,0.1525343]
[1762800063385,0.09582861,105940.0,105930.0,0.67471179]
[1762800063879,0.09582861,105940.0,105930.0,0.5133343]
[1762800064078,0.22293401,105940.0,105930.0,0.22028186]
[1762800064485,0.22293401,105940.0,105930.0,0.29699678]
[1762800065087,0.12850861,105940.0,105930.0,0.29699678]
[1762800065386,0.09582861,105940.0,105930.0,0.65779678]
[1762800066079,0.09582861,105940.0,105930.0,0.6836798]
[1762800066384,0.00219803,105940.0,105930.0,0.6836798]
[1762800066777,0.00014177,105950.0,105940.0,0.1525254]
[1762800067080,0.0023398,105950.0,105940.0,0.6746926]
[1762800067683,0.09597038,105950.0,105940.0,0.6746926]
[1762800067881,0.09697038,105950.0,105940.0,0.6746926]
[1762800068087,0.09797038,105950.0,105940.0,0.6746926]
[1762800068886,0.0043398,105950.0,105940.0,0.6746926]
[1762800069491,0.0043398,105950.0,105940.0,0.5133254]
[1762800069695,0.0043398,105950.0,105940.0,0.67466593]
[1762800069984,0.00214177,105950.0,105940.0,0.67466593]
[1762800070183,0.00214177,105950.0,105940.0,0.60695598]
[1762800071181,0.00214177,105950.0,105940.0,0.67464837]
[1762800073878,0.0043398,105950.0,105940.0,0.67464837]
[1762800075290,0.0043398,105950.0,105940.0,0.12579239]
[1762800075291,0.22506688,105950.0,105940.0,0.12579239]
[1762800075484,0.58586688,105950.0,105940.0,0.12579239]
[1762800076001,0.58586688,105950.0,105940.0,0.22021779]
[1762800076187,0.58586688,105950.0,105940.0,0.12579239]
[1762800076890,0.58586688,105950.0,105940.0,0.22021779]
[1762800077791,0.22506688,105950.0,105940.0,0.22021779]
[1762800078093,0.22506688,105950.0,105940.0,0.67464837]
[1762800078094,0.09797038,105950.0,105940.0,0.67464837]
[1762800078292,0.09797038,105950.0,105940.0,0.60695598]
[1762800078592,0.09797038,105950.0,105940.0,0.67462995]
[1762800080492,0.22506688,105950.0,105940.0,0.12577397]
[1762800080892,0.22506688,105950.0,105940.0,0.22019937]
[1762800082492,0.13065038,105950.0,105940.0,0.22019937]
[1762800083094,0.22506688,105950.0,105940.0,0.22019937]
[1762800083295,0.58586688,105950.0,105940.0,0.12577397]
[1762800085490,0.67949746,105950.0,105940.0,0.12577397]
[1762800085709,0.1271054,105940.0,105930.0,0.14438889]
[1762800085897,0.77099517,105940.0,105930.0,0.07671492]
[1762800086097,0.1271143,105930.0,105920.0,0.12713574]
[1762800086398,0.67737349,105930.0,105920.0,0.12713574]
[1762800086988,0.69041349,105930.0,105920.0,0.11368574]
[1762800087698,0.69041349,105930.0,105920.0,0.04601177]
[1762800088700,0.69041349,105930.0,105920.0,0.04701177]
[1762800088901,0.69041349,105930.0,105920.0,0.04801177]
[1762800089098,0.69041349,105930.0,105920.0,0.04701177]
[1762800089291,0.67737349,105930.0,105920.0,0.15486497]
[1762800089495,0.67737349,105930.0,105920.0,0.15386497]
[1762800089695,0.67837349,105930.0,105920.0,0.15386497]
[1762800090896,0.67937349,105930.0,105920.0,0.15386497]
[1762800091199,0.67937349,105930.0,105920.0,0.05942177]
[1762800091404,0.67937349,105930.0,105920.0,0.04601177]
[1762800091605,0.67937349,105930.0,105920.0,0.05942177]
[1762800092603,0.67937349,105930.0,105920.0,0.15386497]
[1762800094806,0.67937349,105930.0,105920.0,0.05942177]
[1762800095901,0.1271321,105910.0,105900.0,0.12695397]
[1762800096098,0.67739129,105910.0,105900.0,0.12695397]
[1762800096302,0.67739129,105910.0,105900.0,0.05928]
[1762800096905,0.58376071,105910.0,105900.0,0.05928]
[1762800097608,0.58376071,105910.0,105900.0,0.06028]
[1762800098004,0.49013013,105910.0,105900.0,0.1557411]
[1762800098308,0.58376071,105910.0,105900.0,0.1557411]
[1762800098910,0.58376071,105910.0,105900.0,0.1537411]
[1762800101108,0.58376071,105910.0,105900.0,0.05928]
[1762800102098,0.58376071,105910.0,105900.0,0.1537411]
[1762800102410,0.58376071,105910.0,105900.0,0.05928]
[1762800102610,0.58376071,105910.0,105900.0,0.1537411]
[1762800106206,0.58376071,105910.0,105900.0,0.05928]
[1762800106910,0.1271411,105900.0,105890.0,0.13470741]
[1762800107118,0.1271411,105900.0,105890.0,0.12129741]
[1762800107119,0.67740029,105900.0,105890.0,0.12129741]
[1762800108811,0.67940029,105900.0,105890.0,0.12129741]
[1762800109020,0.67958323,105900.0,105890.0,0.12129741]
[1762800109720,0.67958323,105900.0,105890.0,0.07542741]
[1762800110015,0.49213913,105900.0,105890.0,0.22503741]
[1762800110209,0.49213913,105900.0,105890.0,0.13056741]
[1762800110210,0.58586118,105900.0,105890.0,0.13056741]
[1762800110415,0.58586118,105900.0,105890.0,0.22503741]
[1762800111002,0.49140008,105900.0,105890.0,0.22503741]
[1762800111210,0.58586118,105900.0,105890.0,0.22503741]
[1762800111813,0.49213913,105900.0,105890.0,0.22503741]
[1762800112118,0.58586118,105900.0,105890.0,0.22503741]
[1762800122222,0.67958323,105900.0,105890.0,0.00014177]
[1762800122626,0.67958323,105900.0,105890.0,0.02323177]
[1762800123415,0.67958323,105900.0,105890.0,0.11770177]
[1762800123619,0.67958323,105900.0,105890.0,0.14038177]
[1762800123826,0.58586118,105900.0,105890.0,0.14038177]
[1762800124423,0.58586118,105900.0,105890.0,0.15353177]
[1762800124624,0.58586118,105900.0,105890.0,0.05906177]
[1762800124827,0.58586118,105900.0,105890.0,0.15353177]
[1762800133433,0.58586118,105900.0,105890.0,0.22134625]
[1762800135236,0.49140008,105900.0,105890.0,0.22134625]
[1762800136135,0.58586118,105900.0,105890.0,0.12687625]
[1762800136531,0.67958323,105900.0,105890.0,0.06795625]
[1762800140743,0.67958323,105900.0,105890.0,0.00014177]
[1762800141244,0.70246358,105900.0,105890.0,0.00014177]
[1762800143243,0.70246358,105900.0,105890.0,0.09461177]
[1762800143847,0.70246358,105900.0,105890.0,0.13907177]
[1762800144743,0.70246358,105900.0,105890.0,0.02129177]
[1762800145136,0.67958323,105900.0,105890.0,0.11576177]
[1762800145549,0.58512213,105900.0,105890.0,0.13907177]
[1762800145840,0.39767803,105900.0,105890.0,0.3146083]
[1762800146037,0.39767803,105900.0,105890.0,0.22088625]
[1762800146441,0.39767803,105900.0,105890.0,0.2378666]
[1762800146636,0.00419803,105900.0,105890.0,0.69238865]
[1762800146834,0.002,105900.0,105890.0,0.60759382]
[1762800147039,0.001,105900.0,105890.0,0.69238865]
[1762800147346,0.58179332,105920.0,105910.0,0.1529121]
[1762800147545,0.58399135,105920.0,105910.0,0.22075168]
[1762800147746,0.4902693,105920.0,105910.0,0.22075168]
[1762800148048,0.58399135,105920.0,105910.0,0.12629958]
[1762800148733,0.58599135,105920.0,105910.0,0.12629958]
[1762800149145,0.58499135,105920.0,105910.0,0.12629958]
[1762800149442,0.58699135,105920.0,105910.0,0.05846]
[1762800150142,0.58499135,105920.0,105910.0,0.05846]
[1762800150344,0.58599135,105920.0,105910.0,0.05846]
[1762800151256,0.58599135,105920.0,105910.0,0.1529121]
[1762800151451,0.58599135,105920.0,105910.0,0.05846]
[1762800154158,0.58599135,105920.0,105910.0,0.1529122]
[1762800156257,0.58599135,105920.0,105910.0,0.05846]
[1762800156453,0.58599135,105920.0,105910.0,0.1529122]
[1762800158056,0.49154185,105920.0,105910.0,0.1529122]
[1762800158259,0.58598515,105920.0,105910.0,0.1529122]
[1762800162258,0.4922631,105920.0,105910.0,0.1529122]
[1762800162461,0.58598515,105920.0,105910.0,0.1529122]
[1762800163061,0.3978198,105920.0,105910.0,0.1529122]
[1762800163257,0.4922631,105920.0,105910.0,0.1529122]
[1762800165561,0.1314631,105920.0,105910.0,0.1529122]
[1762800166568,0.0370198,105920.0,105910.0,0.1529122]
[1762800166861,0.1314627,105920.0,105910.0,0.1529122]
[1762800167067,0.4922627,105920.0,105910.0,0.1529122]
[1762800167959,0.4922627,105920.0,105910.0,0.22075178]
[1762800168168,0.58598475,105920.0,105910.0,0.12629958]
[1762800169063,0.58598475,105920.0,105910.0,0.22075148]
[1762800169953,0.58598475,105920.0,105910.0,0.12629958]